{"text_format":"1","workbook":"xlsx","n_sheets":3,"sheets":["DN-1","ZDN-1","ZDN-2"],"not_rendered":{"charts":0,"images":11,"macros":1,"external_links":0,"defined_names":3,"comments":0,"pivot_tables":0},"unopened":[],"bounds":{"document_bytes":16777216,"sheet_cells":100000,"rows_first":2000,"rows_last":500,"rows_between":2000,"halvings":0,"cell_chars":16384,"cell_head_chars":4096},"cells_cut":0,"cells_raw":0,"read":"whole","date_system":"1900"}

{"sheet":"DN-1","index":0,"n_rows":269,"n_cols":26,"rows_kept":269,"cut":false,"hidden":false,"merged":[[7,7,8,10],[21,4,21,23],[38,4,38,23],[40,2,40,23],[41,4,41,8],[41,10,41,13],[41,14,41,23],[31,12,31,15],[268,1,268,19],[268,20,268,22],[249,2,249,23],[259,2,259,23],[250,2,250,23],[261,1,261,23],[262,1,262,23],[263,1,263,23],[244,1,244,23],[245,1,245,23],[246,2,246,23],[247,2,247,23],[248,2,248,23],[238,2,238,23],[213,1,213,23],[214,1,214,3],[234,2,234,14],[234,15,234,23],[235,2,235,14],[235,15,235,23],[236,1,236,23],[237,1,237,23],[231,2,231,14],[231,15,231,23],[232,2,232,14],[232,15,232,23],[233,2,233,14],[233,15,233,23],[227,1,227,23],[228,2,228,14],[228,15,228,23],[229,2,229,14],[229,15,229,23],[230,2,230,14],[230,15,230,23],[224,2,224,14],[224,15,224,23],[225,2,225,14],[225,15,225,23],[226,2,226,14],[226,15,226,23],[223,15,223,23],[210,2,210,23],[211,2,211,14],[211,15,211,23],[212,2,212,14],[212,15,212,23],[215,0,215,23],[216,1,216,23],[218,2,218,23],[219,2,219,23],[220,1,220,23],[214,4,214,6],[214,7,214,23],[159,1,159,23],[160,1,160,23],[167,1,167,23],[161,2,161,11],[161,12,161,16],[161,17,161,20],[161,21,161,23],[162,2,162,11],[162,12,162,16],[162,17,162,20],[162,21,162,23],[163,2,164,6],[163,7,164,11],[163,12,163,16],[163,17,163,20],[163,21,163,23],[164,12,164,16],[164,17,164,20],[164,21,164,23],[165,2,166,6],[165,7,166,11],[165,12,165,16],[165,17,165,20],[156,1,156,23],[157,1,157,19],[157,20,157,22],[140,21,140,23],[141,12,141,16],[141,17,141,20],[141,21,141,23],[144,17,144,20],[144,21,144,23],[145,12,145,16],[145,17,145,20],[145,21,145,23],[150,12,150,16],[150,17,150,20],[150,21,150,23],[150,2,150,11],[154,2,155,6],[154,7,155,11],[154,12,154,16],[154,17,154,20],[154,21,154,23],[155,12,155,16],[155,17,155,20],[155,21,155,23],[148,1,148,23],[149,2,149,23],[146,2,147,6],[146,7,147,11],[146,12,146,16],[146,17,146,20],[146,21,146,23],[147,12,147,16],[147,17,147,20],[147,21,147,23],[142,17,142,20],[142,21,142,23],[143,2,143,11],[143,12,143,16],[143,17,143,20],[143,21,143,23],[144,2,145,6],[144,7,145,11],[144,12,144,16],[133,21,133,23],[138,2,139,6],[138,7,139,11],[138,12,138,16],[138,17,138,20],[138,21,138,23],[139,12,139,16],[139,17,139,20],[139,21,139,23],[135,2,135,23],[132,2,133,6],[132,7,133,11],[132,12,132,16],[134,1,134,23],[132,17,132,20],[132,21,132,23],[133,12,133,16],[133,17,133,20],[136,12,136,16],[136,17,136,20],[136,21,136,23],[137,12,137,16],[137,17,137,20],[137,21,137,23],[118,17,118,20],[118,21,118,23],[119,12,119,16],[124,2,125,6],[124,7,125,11],[124,12,124,16],[124,17,124,20],[118,2,119,6],[118,7,119,11],[118,12,118,16],[124,21,124,23],[125,12,125,16],[125,17,125,20],[122,2,123,11],[122,12,122,16],[126,2,127,6],[126,7,127,11],[126,12,126,16],[126,17,126,20],[126,21,126,23],[127,12,127,16],[127,17,127,20],[127,21,127,23],[106,1,106,3],[106,4,106,6],[106,7,106,23],[116,17,116,20],[116,21,116,23],[117,12,117,16],[117,17,117,20],[117,21,117,23],[116,12,116,16],[125,21,125,23],[116,2,117,11],[112,2,113,6],[112,7,113,11],[112,12,112,16],[112,17,112,20],[112,21,112,23],[113,12,113,16],[113,17,113,20],[113,21,113,23],[114,2,115,6],[114,7,115,11],[114,12,114,16],[114,17,114,20],[114,21,114,23],[115,12,115,16],[115,17,115,20],[115,21,115,23],[119,17,119,20],[119,21,119,23],[120,2,121,6],[120,7,121,11],[120,12,120,16],[120,17,120,20],[71,2,71,11],[71,12,71,16],[71,17,71,20],[71,21,71,23],[73,12,73,16],[73,17,73,20],[73,21,73,23],[72,12,72,16],[72,17,72,20],[72,21,72,23],[72,2,73,11],[68,1,68,23],[69,1,69,23],[65,0,65,23],[66,1,66,23],[67,1,67,23],[70,2,70,11],[70,12,70,16],[70,21,70,23],[70,17,70,20],[61,2,61,14],[61,15,61,23],[62,2,62,14],[62,15,62,23],[63,1,63,23],[64,1,64,19],[64,20,64,22],[59,2,59,8],[59,9,59,20],[59,22,59,23],[60,2,60,8],[60,9,60,20],[60,22,60,23],[56,1,56,23],[57,2,57,7],[57,8,57,17],[57,18,57,23],[58,2,58,7],[58,8,58,17],[58,18,58,23],[53,2,53,8],[53,9,53,20],[53,22,53,23],[54,2,54,14],[54,15,54,23],[55,2,55,14],[55,15,55,23],[51,2,51,7],[51,8,51,17],[51,18,51,23],[52,2,52,8],[52,9,52,20],[52,22,52,23],[48,2,48,10],[48,11,48,18],[48,19,48,23],[49,1,49,23],[50,2,50,7],[50,8,50,17],[50,18,50,23],[43,2,43,14],[43,15,43,23],[44,2,44,23],[46,1,46,23],[47,2,47,10],[47,11,47,18],[47,19,47,23],[33,1,33,23],[34,2,34,23],[36,1,36,23],[37,1,37,23],[39,1,39,23],[42,2,42,14],[42,15,42,23],[35,4,35,15],[35,16,35,23],[45,2,45,10],[45,11,45,23],[32,1,32,23],[24,1,24,23],[25,1,25,23],[26,2,26,23],[27,2,27,23],[28,2,28,23],[29,2,29,9],[29,10,29,16],[29,17,29,23],[0,1,0,23],[1,1,1,23],[2,1,2,23],[3,14,4,23],[4,1,4,2],[3,1,3,13],[7,11,7,16],[8,11,8,16],[20,1,20,3],[20,4,20,23],[11,4,11,23],[12,1,12,3],[12,4,12,23],[18,1,18,3],[18,4,18,23],[19,1,19,3],[19,4,19,23],[13,1,13,3],[13,4,13,23],[17,1,17,3],[17,4,17,23],[14,1,14,3],[14,4,14,23],[15,1,15,3],[267,25,267,28],[268,25,268,28],[107,0,107,23],[158,0,158,23],[108,1,108,23],[109,1,109,23],[4,3,4,13],[5,1,5,23],[6,1,6,23],[9,1,9,23],[10,1,10,3],[10,4,10,23],[22,1,22,3],[22,4,22,23],[23,1,23,3],[23,4,23,23],[15,4,15,23],[16,1,16,3],[16,4,16,23],[21,1,21,3],[30,2,30,23],[31,2,31,11],[31,16,31,17],[31,18,31,23],[74,12,74,16],[74,17,74,20],[74,21,74,23],[75,12,75,16],[75,17,75,20],[75,21,75,23],[76,2,77,11],[76,12,76,16],[76,17,76,20],[76,21,76,23],[77,12,77,16],[77,17,77,20],[77,21,77,23],[74,2,75,11],[82,12,82,16],[82,17,82,20],[82,21,82,23],[83,12,83,16],[83,17,83,20],[83,21,83,23],[82,2,82,11],[83,2,83,11],[78,2,79,11],[78,12,78,16],[78,17,78,20],[78,21,78,23],[79,12,79,16],[79,17,79,20],[79,21,79,23],[80,1,80,23],[81,1,81,23],[84,2,84,11],[84,12,84,16],[84,17,84,20],[84,21,84,23],[85,2,85,11],[85,12,85,16],[85,17,85,20],[85,21,85,23],[86,1,86,23],[87,1,87,23],[88,2,88,11],[88,12,88,16],[88,17,88,20],[88,21,88,23],[89,2,89,11],[89,12,89,16],[89,17,89,20],[89,21,89,23],[93,1,93,23],[94,1,94,23],[95,1,95,23],[96,1,96,23],[90,2,90,11],[90,12,90,16],[90,17,90,20],[90,21,90,23],[91,2,91,11],[91,12,91,16],[91,17,91,20],[91,21,91,23],[92,1,92,23],[97,2,97,11],[97,12,97,16],[97,17,97,20],[97,21,97,23],[98,2,98,11],[98,12,98,16],[98,17,98,20],[98,21,98,23],[99,2,100,11],[99,12,99,16],[99,17,99,20],[99,21,99,23],[100,12,100,16],[100,17,100,20],[100,21,100,23],[101,2,102,6],[101,7,102,11],[103,7,104,11],[103,2,104,6],[110,2,111,11],[110,12,110,16],[110,17,110,20],[110,21,110,23],[111,12,111,16],[111,17,111,20],[111,21,111,23],[101,12,101,16],[101,17,101,20],[101,21,101,23],[102,12,102,16],[102,17,102,20],[102,21,102,23],[103,12,103,16],[103,17,103,20],[103,21,103,23],[104,12,104,16],[104,17,104,20],[104,21,104,23],[105,1,105,23],[120,21,120,23],[121,12,121,16],[121,17,121,20],[121,21,121,23],[122,17,122,20],[122,21,122,23],[123,12,123,16],[123,17,123,20],[123,21,123,23],[128,2,129,11],[128,12,128,16],[128,17,128,20],[128,21,128,23],[129,12,129,16],[129,17,129,20],[129,21,129,23],[130,2,131,6],[130,7,131,11],[130,12,130,16],[130,17,130,20],[130,21,130,23],[131,12,131,16],[131,17,131,20],[131,21,131,23],[137,2,137,11],[136,2,136,11],[140,2,141,6],[140,7,141,11],[140,12,140,16],[140,17,140,20],[165,21,165,23],[166,12,166,16],[166,17,166,20],[166,21,166,23],[151,2,151,11],[151,12,151,16],[151,17,151,20],[151,21,151,23],[152,2,153,6],[152,7,153,11],[152,12,152,16],[152,17,152,20],[152,21,152,23],[153,12,153,16],[153,17,153,20],[153,21,153,23],[142,2,142,11],[142,12,142,16],[169,2,169,11],[169,12,169,16],[169,17,169,20],[169,21,169,23],[170,2,170,11],[170,12,170,16],[170,17,170,20],[170,21,170,23],[168,1,168,23],[171,2,172,11],[171,12,171,16],[171,17,171,20],[171,21,171,23],[172,12,172,16],[172,17,172,20],[172,21,172,23],[173,1,173,23],[174,2,174,23],[175,2,175,11],[175,12,175,16],[175,17,175,20],[175,21,175,23],[176,2,176,11],[176,12,176,16],[176,17,176,20],[176,21,176,23],[185,2,185,17],[185,18,185,23],[182,1,182,23],[177,1,177,23],[178,2,178,23],[179,2,179,11],[179,12,179,16],[179,17,179,20],[179,21,179,23],[180,2,180,11],[180,12,180,16],[180,17,180,20],[180,21,180,23],[181,1,181,23],[186,2,186,17],[186,18,186,23],[189,1,189,23],[183,2,183,17],[183,18,183,23],[184,2,184,17],[184,18,184,23],[190,2,190,8],[191,2,191,8],[190,9,190,15],[190,16,190,19],[190,20,190,23],[191,9,191,15],[191,16,191,19],[191,20,191,23],[187,2,187,17],[187,18,187,23],[188,2,188,17],[188,18,188,23],[192,2,192,8],[192,9,192,15],[192,16,192,19],[192,20,192,23],[193,2,193,8],[193,9,193,15],[193,16,193,19],[193,20,193,23],[194,2,194,8],[194,9,194,15],[194,16,194,19],[194,20,194,23],[195,2,195,8],[195,9,195,15],[195,16,195,19],[195,20,195,23],[196,2,196,8],[196,9,196,15],[196,16,196,19],[196,20,196,23],[197,2,197,8],[197,9,197,15],[197,16,197,19],[197,20,197,23],[198,2,198,8],[198,9,198,15],[198,16,198,19],[198,20,198,23],[199,2,199,8],[199,9,199,15],[199,16,199,19],[199,20,199,23],[200,2,200,8],[200,9,200,15],[200,16,200,19],[200,20,200,23],[251,2,251,23],[252,2,252,23],[253,2,253,23],[254,2,254,23],[255,2,255,23],[256,2,256,23],[201,2,201,8],[201,9,201,15],[201,16,201,19],[201,20,201,23],[205,2,205,15],[205,16,205,23],[206,8,206,15],[206,19,206,23],[209,1,209,23],[207,1,207,23],[208,1,208,23],[202,1,202,23],[203,1,203,23],[204,2,204,23],[217,1,217,23],[221,1,221,23],[222,1,222,23],[223,2,223,14],[257,2,257,23],[258,2,258,23],[260,2,260,23],[264,1,264,23],[265,1,265,23],[266,1,266,23],[46,25,46,28],[47,25,47,28],[48,25,48,28],[49,25,49,28],[50,25,50,28],[51,25,51,28],[52,25,52,28],[53,25,53,28],[54,25,54,28],[55,25,55,28],[56,25,56,28],[57,25,57,28],[58,25,58,28],[59,25,59,28],[60,25,60,28],[61,25,61,28],[243,2,243,23],[240,2,240,23]]}
[]
[null," WYPEŁNIĆ DUŻYMI, DRUKOWANYMI LITERAMI, CZARNYM LUB NIEBIESKIM KOLOREM."]
[]
[null," 1. Identyfikator podatkowy NIP / numer PESEL (niepotrzebne skreślić)1)",null,null,null,null,null,null,null,null,null,null,null,null," 2. Nr dokumentu"]
[]
[null,"DN-1"]
[null,"DEKLARACJA NA PODATEK OD NIERUCHOMOŚCI"]
[null,null,null,null,null,null,null,"NA ROK",null,null,null," 3. Rok"]
[]
[]
[null," Podstawa prawna:",null,null,"Art. 6 ust. 9, 10 i 11 ustawy z dnia 12 stycznia 1991 r. o podatkach i opłatach lokalnych (Dz. U. z 2018 r. poz. 1445, z późn. zm.), '"]
[null,null,null,null,"zwanej dalej „ustawą”."]
[null," Składający:",null,null,"Osoby prawne, jednostki organizacyjne oraz spółki niemające osobowości prawnej, jednostki organizacyjne Krajowego"]
[null,null,null,null,"Ośrodka Wsparcia Rolnictwa, a także jednostki organizacyjne Państwowego Gospodarstwa Leśnego Lasy Państwowe będące"]
[null,null,null,null,"właścicielami nieruchomości lub obiektów budowlanych, posiadaczami samoistnymi nieruchomości lub obiektów budowlanych,"]
[null,null,null,null,"użytkownikami wieczystymi gruntów, posiadaczami nieruchomości lub ich części albo obiektów budowlanych lub ich części,"]
[null,null,null,null,"stanowiących własność Skarbu Państwa lub jednostki samorządu terytorialnego oraz osoby fizyczne będące"]
[null,null,null,null,"współwłaścicielami lub współposiadaczami nieruchomości lub obiektów budowlanych z osobami prawnymi, jednostkami"]
[null,null,null,null,"organizacyjnymi nieposiadającymi osobowości prawnej lub spółkami nieposiadającymi osobowości prawnej, z wyjątkiem"]
[null,null,null,null,"osób tworzących wspólnotę mieszkaniową."]
[null," Termin składania:",null,null,"Do dnia 31 stycznia danego roku podatkowego lub w terminie 14 dni od dnia zaistnienia okoliczności uzasadniających"]
[null,null,null,null,"powstanie obowiązku podatkowego lub od dnia zaistnienia zdarzenia mającego wpływ na wysokość opodatkowania,"]
[null,null,null,null,"o którym mowa w art. 6 ust. 3 ustawy."]
[null," Miejsce składania:",null,null,"Organ podatkowy właściwy ze względu na miejsce położenia przedmiotów opodatkowania."]
[]
[null," A. MIEJSCE I CEL SKŁADANIA DEKLARACJI2)"]
[null,null," 4. Nazwa i adres siedziby organu podatkowego"]
[]
[null,null," 5. Cel złożenia formularza (zaznaczyć właściwy kwadrat):"]
[null,null,null,null,null,null,null,null,null,null," 1. złożenie deklaracji",null,null,null,null,null,null," 2. korekta deklaracji 3)"]
[null,null," 6. Okres – od którego deklaracja obowiązuje"]
[null,null," (miesiąc)"]
[]
[null," B. PODMIOT ZOBOWIĄZANY DO ZŁOŻENIA DEKLARACJI"]
[null,null," 7. Rodzaj podmiotu (zaznaczyć właściwy kwadrat):"]
[null,null,null,null," 1. właściciel, użytkownik wieczysty lub posiadacz",null,null,null,null,null,null,null,null,null,null,null," 2. współwłaściciel, współużytkownik wieczysty lub współposiadacz"]
[]
[null," C. DANE PODATNIKA"]
[null,null,null,null,"* - dotyczy podatnika niebędącego osobą fizyczną     ** - dotyczy podatnika będącego osobą fizyczną"]
[null," C.1. DANE IDENTYFIKACYJNE"]
[null,null," 8. Rodzaj podatnika (zaznaczyć właściwy kwadrat):"]
[null,null,null,null," 1. osoba fizyczna",null,null,null,null,null," 2. osoba prawna",null,null,null," 3. jednostka organizacyjna, w tym spółka nieposiadająca osobowości prawnej"]
[null,null," 9. Nazwa pełna * / Nazwisko **",null,null,null,null,null,null,null,null,null,null,null,null," 10. Nazwa skrócona * / Pierwsze imię**"]
[]
[null,null," 11. Identyfikator REGON (w przypadku osób fizycznych REGON podaje się, o ile został nadany)"]
[]
[null,"Pola 12, 13, 14 wypełnia osoba fizyczna w przypadku, gdy numer PESEL nie został nadany.",null,null,null,null,null,null,null,null,null,null,null,null,null,null,null,null,null,null,null,null,null,null,null,"Dolnośląskie"]
[null,null," 12. Data urodzenia (dzień - miesiąc - rok)",null,null,null,null,null,null,null,null," 13. Imię ojca",null,null,null,null,null,null,null," 14. Imię matki",null,null,null,null,null,"Kujawsko-Pomorskie"]
[null,null,null,null,null,null,null,null,null,null,null,null,null,null,null,null,null,null,null,null,null,null,null,null,null,"Lubelskie"]
[null," C.2. ADRES SIEDZIBY * / ADRES ZAMIESZKANIA **",null,null,null,null,null,null,null,null,null,null,null,null,null,null,null,null,null,null,null,null,null,null,null,"Lubuskie"]
[null,null," 15. Kraj",null,null,null,null,null," 16. Województwo",null,null,null,null,null,null,null,null,null," 17. Powiat",null,null,null,null,null,null,"Łódzkie"]
[null,null,null,null,null,null,null,null,null,null,null,null,null,null,null,null,null,null,null,null,null,null,null,null,null,"Małopolskie"]
[null,null," 18. Gmina",null,null,null,null,null,null," 19. Ulica",null,null,null,null,null,null,null,null,null,null,null," 20. Nr domu"," 21. Nr lokalu",null,null,"Mazowieckie"]
[null,null,null,null,null,null,null,null,null,null,null,null,null,null,null,null,null,null,null,null,null,null,null,null,null,"Opolskie"]
[null,null," 22. Miejscowość",null,null,null,null,null,null,null,null,null,null,null,null," 23. Kod pocztowy",null,null,null,null,null,null,null,null,null,"Podkarpackie"]
[null,null,null,null,null,null,null,null,null,null,null,null,null,null,null,null,null,null,null,null,null,null,null,null,null,"Podlaskie"]
[null," C.3. ADRES DO DORĘCZEŃ Należy wypełnić tylko wówczas, gdy adres do doręczeń jest inny niż w części C.2.",null,null,null,null,null,null,null,null,null,null,null,null,null,null,null,null,null,null,null,null,null,null,null,"Pomorskie"]
[null,null," 24. Kraj",null,null,null,null,null," 25. Województwo",null,null,null,null,null,null,null,null,null," 26. Powiat",null,null,null,null,null,null,"Śląskie"]
[null,null,null,null,null,null,null,null,null,null,null,null,null,null,null,null,null,null,null,null,null,null,null,null,null,"Świętokrzyskie"]
[null,null," 27. Gmina",null,null,null,null,null,null," 28. Ulica",null,null,null,null,null,null,null,null,null,null,null," 29. Nr domu"," 30. Nr lokalu",null,null,"Warmińsko-Mazurskie"]
[null,null,null,null,null,null,null,null,null,null,null,null,null,null,null,null,null,null,null,null,null,null,null,null,null,"Wielkopolskie"]
[null,null," 31. Miejscowość",null,null,null,null,null,null,null,null,null,null,null,null," 32. Kod pocztowy",null,null,null,null,null,null,null,null,null,"Zachodniopomorskie"]
[]
[]
[null,null,null,null,null,null,null,null,null,null,null,null,null,null,null,null,null,null,null,null,"DN-1(1)",null,null," 1/5"]
[" - STRONA 2 -"]
[null," WYPEŁNIĆ DUŻYMI, DRUKOWANYMI LITERAMI, CZARNYM LUB NIEBIESKIM KOLOREM."]
[]
[null," D. DANE O PRZEDMIOTACH OPODATKOWANIA PODLEGAJĄCYCH OPODATKOWANIU"]
[null," D.1. GRUNTY"]
[null,null,null,null,null,null,null,null,null,null,null,null,"Powierzchnia w m2 / ha4)\n",null,null,null,null,"Stawka podatku\n",null,null,null,"Kwota podatku za okres,\nktórego dotyczy deklaracja5)"]
[null,null,null,null,null,null,null,null,null,null,null,null,null,null,null,null,null,"zł      gr  ",null,null,null,"zł      gr ' "]
[null,null," Związane z prowadzeniem działalności gospodarczej,\n bez względu na sposób zakwalifikowania w ewidencji\n gruntów i budynków",null,null,null,null,null,null,null,null,null," 33.",null,null,null,null," 34.",null,null,null," 35."]
[null,null,null,null,null,null,null,null,null,null,null,null,null,null,null,null,null,null,null,null,null,{"$f":"IF(OR($M$32=\"\",M74=\"\",R74=\"\"),\"\",ROUND(M74*R74/12*(13-$M$32),2))","v":""}]
[null,null," Pod wodami powierzchniowymi stojącymi lub wodami\n powierzchniowymi płynącymi jezior i zbiorników\n sztucznych",null,null,null,null,null,null,null,null,null," 36.",null,null,null,null," 37.",null,null,null," 38."]
[null,null,null,null,null,null,null,null,null,null,null,null,null,null,null,null,null,null,null,null,null,{"$f":"IF(OR($M$32=\"\",M76=\"\",R76=\"\"),\"\",ROUND(M76*R76/12*(13-$M$32),2))","v":""}]
[null,null," Pozostałe, w tym zajęte na prowadzenie odpłatnej\n statutowej działalności pożytku publicznego przez\n organizacje pożytku publicznego",null,null,null,null,null,null,null,null,null," 39.",null,null,null,null," 40.",null,null,null," 41."]
[null,null,null,null,null,null,null,null,null,null,null,null,null,null,null,null,null,null,null,null,null,{"$f":"IF(OR($M$32=\"\",M78=\"\",R78=\"\"),\"\",ROUND(M78*R78/12*(13-$M$32),2))","v":""}]
[null,null," Niezabudowane objęte obszarem rewitalizacji, o którym\n mowa w ustawie z dnia 9 października 2015 r.\n o rewitalizacji (Dz. U. z 2018 r. poz. 1398, z późn. zm.),\n i położone na terenach, dla których miejscowy plan\n zagospodarowania przestrzennego przewiduje\n przeznaczenie pod zabudowę mieszkaniową, usługową\n albo zabudowę o przeznaczeniu mieszanym\n obejmującym wyłącznie te rodzaje zabudowy, jeżeli od\n dnia wejścia w życie tego planu w odniesieniu do tych\n gruntów upłynął okres 4 lat, a w tym czasie nie\n zakończono budowy zgodnie z przepisami prawa\n budowlanego",null,null,null,null,null,null,null,null,null," 42.",null,null,null,null," 43.",null,null,null," 44."]
[null,null,null,null,null,null,null,null,null,null,null,null,null,null,null,null,null,null,null,null,null,{"$f":"IF(OR($M$32=\"\",M80=\"\",R80=\"\"),\"\",ROUND(M80*R80/12*(13-$M$32),2))","v":""}]
[null," D.1.1. INNE GRUNTY (1) Należy wypełnić tylko dla rodzajów przedmiotów opodatkowania innych niż określone w części D.1."]
[null,"  Podać nazwę rodzaju przedmiotu opodatkowania lub jednostkę redakcyjną - zgodnie z uchwałą rady gminy."]
[null,null," 45. Rodzaj przedmiotu opodatkowania",null,null,null,null,null,null,null,null,null," 46.",null,null,null,null," 47.",null,null,null," 48."]
[null,null,null,null,null,null,null,null,null,null,null,null,null,null,null,null,null,null,null,null,null,{"$f":"IF(OR($M$32=\"\",M84=\"\",R84=\"\"),\"\",ROUND(M84*R84/12*(13-$M$32),2))","v":""}]
[null,null," 49. Rodzaj przedmiotu opodatkowania",null,null,null,null,null,null,null,null,null," 50.",null,null,null,null," 51.",null,null,null," 52."]
[null,null,null,null,null,null,null,null,null,null,null,null,null,null,null,null,null,null,null,null,null,{"$f":"IF(OR($M$32=\"\",M86=\"\",R86=\"\"),\"\",ROUND(M86*R86/12*(13-$M$32),2))","v":""}]
[null," D.1.2. INNE GRUNTY (2) Należy wypełnić tylko dla rodzajów przedmiotów opodatkowania innych niż określone w części D.1."]
[null,"  Podać nazwę rodzaju przedmiotu opodatkowania lub jednostkę redakcyjną - zgodnie z uchwałą rady gminy."]
[null,null," 45. Rodzaj przedmiotu opodatkowania",null,null,null,null,null,null,null,null,null," 46.",null,null,null,null," 47.",null,null,null," 48."]
[null,null,null,null,null,null,null,null,null,null,null,null,null,null,null,null,null,null,null,null,null,{"$f":"IF(OR($M$32=\"\",M90=\"\",R90=\"\"),\"\",ROUND(M90*R90/12*(13-$M$32),2))","v":""}]
[null,null," 49. Rodzaj przedmiotu opodatkowania",null,null,null,null,null,null,null,null,null," 50.",null,null,null,null," 51.",null,null,null," 52."]
[null,null,null,null,null,null,null,null,null,null,null,null,null,null,null,null,null,null,null,null,null,{"$f":"IF(OR($M$32=\"\",M92=\"\",R92=\"\"),\"\",ROUND(M92*R92/12*(13-$M$32),2))","v":""}]
[null,"D.2. BUDYNKI LUB ICH CZĘŚCI Do powierzchni użytkowej budynku lub jego części zalicza się powierzchnię mierzoną po"]
[null,"wewnętrznej długości ścian na wszystkich kondygnacjach, z wyjątkiem powierzchni klatek schodowych oraz szybów dźwigowych;"]
[null,"za kondygnację uważa się również garaże podziemne, piwnice, sutereny i poddasza użytkowe."]
[null,"Powierzchnię pomieszczeń lub ich części oraz część kondygnacji o wysokości w świetle od 1,40 m do 2,20 m zalicza się do powierzchni"]
[null,"użytkowej budynku w 50%, a jeżeli wysokość jest mniejsza niż 1,40 m, powierzchnię tę pomija się."]
[null,null,null,null,null,null,null,null,null,null,null,null,"Powierzchnia użytkowa w m2\n",null,null,null,null,"Stawka podatku\n",null,null,null,"Kwota podatku za okres,\nktórego dotyczy deklaracja5)"]
[null,null,null,null,null,null,null,null,null,null,null,null,null,null,null,null,null,"zł      gr  ",null,null,null,"zł      gr ' "]
[null,null," Budynki mieszkalne - ogółem",null,null,null,null,null,null,null,null,null," 53.",null,null,null,null," 54.",null,null,null," 55."]
[null,null,null,null,null,null,null,null,null,null,null,null,{"$f":"IF(AND(M103=\"\",M105=\"\"),\"\",SUM(M103,M105))","v":""},null,null,null,null,null,null,null,null,{"$f":"IF(OR($M$32=\"\",M101=\"\",R101=\"\"),\"\",ROUND(M101*R101/12*(13-$M$32),2))","v":""}]
[null,null," w tym kondygnacji\n o wysokości:",null,null,null,null," - od 1,40 do 2,20 m",null,null,null,null," 56."]
[]
[null,null,null,null,null,null,null," - powyżej 2,20 m",null,null,null,null," 57."]
[]
[]
[null,"DN-1(1)",null,null,"2/5"]
[" - STRONA 3 -"]
[null," WYPEŁNIĆ DUŻYMI, DRUKOWANYMI LITERAMI, CZARNYM LUB NIEBIESKIM KOLOREM."]
[]
[null,null," Związane z prowadzeniem działalności gospodarczej\n oraz budynki mieszkalne lub ich części zajęte na\n prowadzenie działalności gospodarczej - ogółem",null,null,null,null,null,null,null,null,null," 58.",null,null,null,null," 59.",null,null,null," 60."]
[null,null,null,null,null,null,null,null,null,null,null,null,{"$f":"IF(AND(M114=\"\",M116=\"\"),\"\",SUM(M114,M116))","v":""},null,null,null,null,null,null,null,null,{"$f":"IF(OR($M$32=\"\",M112=\"\",R112=\"\"),\"\",ROUND(M112*R112/12*(13-$M$32),2))","v":""}]
[null,null," w tym kondygnacji\n o wysokości:",null,null,null,null," - od 1,40 do 2,20 m",null,null,null,null," 61."]
[]
[null,null,null,null,null,null,null," - powyżej 2,20 m",null,null,null,null," 62."]
[]
[null,null," Zajęte na prowadzenie działalności gospodarczej w\n zakresie obrotu kwalifikowanym materiałem siewnym -\n ogółem",null,null,null,null,null,null,null,null,null," 63.",null,null,null,null," 64.",null,null,null," 65."]
[null,null,null,null,null,null,null,null,null,null,null,null,{"$f":"IF(AND(M120=\"\",M122=\"\"),\"\",SUM(M120,M122))","v":""},null,null,null,null,null,null,null,null,{"$f":"IF(OR($M$32=\"\",M118=\"\",R118=\"\"),\"\",ROUND(M118*R118/12*(13-$M$32),2))","v":""}]
[null,null," w tym kondygnacji\n o wysokości:",null,null,null,null," - od 1,40 do 2,20 m",null,null,null,null," 66."]
[]
[null,null,null,null,null,null,null," - powyżej 2,20 m",null,null,null,null," 67."]
[]
[null,null," Związane z udzielaniem świadczeń zdrowotnych w\n rozumieniu przepisów o działalności leczniczej, zajęte\n przez podmioty udzielające tych świadczeń - ogółem",null,null,null,null,null,null,null,null,null," 68.",null,null,null,null," 69.",null,null,null," 70."]
[null,null,null,null,null,null,null,null,null,null,null,null,{"$f":"IF(AND(M126=\"\",M128=\"\"),\"\",SUM(M126,M128))","v":""},null,null,null,null,null,null,null,null,{"$f":"IF(OR($M$32=\"\",M124=\"\",R124=\"\"),\"\",ROUND(M124*R124/12*(13-$M$32),2))","v":""}]
[null,null," w tym kondygnacji\n o wysokości:",null,null,null,null," - od 1,40 do 2,20 m",null,null,null,null," 71."]
[]
[null,null,null,null,null,null,null," - powyżej 2,20 m",null,null,null,null," 72."]
[]
[null,null," Pozostałe, w tym zajęte na prowadzenie odpłatnej\n statutowej działalności pożytku publicznego przez\n organizacje pożytku publicznego - ogółem",null,null,null,null,null,null,null,null,null," 73.",null,null,null,null," 74.",null,null,null," 75."]
[null,null,null,null,null,null,null,null,null,null,null,null,{"$f":"IF(AND(M132=\"\",M134=\"\"),\"\",SUM(M132,M134))","v":""},null,null,null,null,null,null,null,null,{"$f":"IF(OR($M$32=\"\",M130=\"\",R130=\"\"),\"\",ROUND(M130*R130/12*(13-$M$32),2))","v":""}]
[null,null," w tym kondygnacji\n o wysokości:",null,null,null,null," - od 1,40 do 2,20 m",null,null,null,null," 76."]
[]
[null,null,null,null,null,null,null," - powyżej 2,20 m",null,null,null,null," 77."]
[]
[null," D.2.1. INNE BUDYNKI LUB ICH CZĘŚCI (1) Należy wypełnić tylko dla rodzajów przedmiotów opodatkowania innych niż"]
[null,null," określone w części D.2. Podać nazwę rodzaju przedmiotu opodatkowania lub jednostkę redakcyjną - zgodnie z uchwałą rady gminy."]
[null,null," 78. Rodzaj przedmiotu opodatkowania",null,null,null,null,null,null,null,null,null," 79.",null,null,null,null," 80.",null,null,null," 81."]
[null,null,null,null,null,null,null,null,null,null,null,null,{"$f":"IF(AND(M140=\"\",M142=\"\"),\"\",SUM(M140,M142))","v":""},null,null,null,null,null,null,null,null,{"$f":"IF(OR($M$32=\"\",M138=\"\",R138=\"\"),\"\",ROUND(M138*R138/12*(13-$M$32),2))","v":""}]
[null,null," w tym kondygnacji\n o wysokości:",null,null,null,null," - od 1,40 do 2,20 m",null,null,null,null," 82."]
[]
[null,null,null,null,null,null,null," - powyżej 2,20 m",null,null,null,null," 83."]
[]
[null,null," 84. Rodzaj przedmiotu opodatkowania",null,null,null,null,null,null,null,null,null," 85.",null,null,null,null," 86.",null,null,null," 87."]
[null,null,null,null,null,null,null,null,null,null,null,null,{"$f":"IF(AND(M146=\"\",M148=\"\"),\"\",SUM(M146,M148))","v":""},null,null,null,null,null,null,null,null,{"$f":"IF(OR($M$32=\"\",M144=\"\",R144=\"\"),\"\",ROUND(M144*R144/12*(13-$M$32),2))","v":""}]
[null,null," w tym kondygnacji\n o wysokości:",null,null,null,null," - od 1,40 do 2,20 m",null,null,null,null," 88."]
[]
[null,null,null,null,null,null,null," - powyżej 2,20 m",null,null,null,null," 89."]
[]
[null," D.2.2. INNE BUDYNKI LUB ICH CZĘŚCI (2) Należy wypełnić tylko dla rodzajów przedmiotów opodatkowania innych niż"]
[null,null," określone w części D.2. Podać nazwę rodzaju przedmiotu opodatkowania lub jednostkę redakcyjną - zgodnie z uchwałą rady gminy."]
[null,null," 78. Rodzaj przedmiotu opodatkowania",null,null,null,null,null,null,null,null,null," 79.",null,null,null,null," 80.",null,null,null," 81."]
[null,null,null,null,null,null,null,null,null,null,null,null,{"$f":"IF(AND(M154=\"\",M156=\"\"),\"\",SUM(M154,M156))","v":""},null,null,null,null,null,null,null,null,{"$f":"IF(OR($M$32=\"\",M152=\"\",R152=\"\"),\"\",ROUND(M152*R152/12*(13-$M$32),2))","v":""}]
[null,null," w tym kondygnacji\n o wysokości:",null,null,null,null," - od 1,40 do 2,20 m",null,null,null,null," 82."]
[]
[null,null,null,null,null,null,null," - powyżej 2,20 m",null,null,null,null," 83."]
[]
[]
[null,null,null,null,null,null,null,null,null,null,null,null,null,null,null,null,null,null,null,null,"DN-1(1)",null,null,"3/5"]
[" - STRONA 4 -"]
[null," WYPEŁNIĆ DUŻYMI, DRUKOWANYMI LITERAMI, CZARNYM LUB NIEBIESKIM KOLOREM."]
[]
[null,null," 84. Rodzaj przedmiotu opodatkowania",null,null,null,null,null,null,null,null,null," 85.",null,null,null,null," 86.",null,null,null," 87."]
[null,null,null,null,null,null,null,null,null,null,null,null,{"$f":"IF(AND(M165=\"\",M167=\"\"),\"\",SUM(M165,M167))","v":""},null,null,null,null,null,null,null,null,{"$f":"IF(OR($M$32=\"\",M163=\"\",R163=\"\"),\"\",ROUND(M163*R163/12*(13-$M$32),2))","v":""}]
[null,null," w tym kondygnacji\n o wysokości:",null,null,null,null," - od 1,40 do 2,20 m",null,null,null,null," 88."]
[]
[null,null,null,null,null,null,null," - powyżej 2,20 m",null,null,null,null," 89."]
[]
[null," D.3. BUDOWLE LUB ICH CZĘŚCI ZWIĄZANE Z PROWADZENIEM DZIAŁALNOŚCI"]
[null,"GOSPODARCZEJ"]
[null,null,null,null,null,null,null,null,null,null,null,null,"Wartość\n(po zaokrągleniu do pełnych złotych)",null,null,null,null,"Stawka podatku\n",null,null,null,"Kwota podatku za okres,\nktórego dotyczy deklaracja5)"]
[null,null,null,null,null,null,null,null,null,null,null,null,"zł   ",null,null,null,null,"%   ",null,null,null,"zł      gr ' "]
[null,null," Budowle",null,null,null,null,null,null,null,null,null," 90.",null,null,null,null," 91.",null,null,null," 92."]
[null,null,null,null,null,null,null,null,null,null,null,null,null,null,null,null,null,null,null,null,null,{"$f":"IF(OR($M$32=\"\",M173=\"\",R173=\"\"),\"\",ROUND(M173*R173/100/12*(13-$M$32),2))","v":""}]
[null," D.3.1. INNE BUDOWLE LUB ICH CZĘŚCI (1) Należy wypełnić tylko dla rodzajów przedmiotów opodatkowania innych niż"]
[null,null," określone w części D.3. Podać nazwę rodzaju przedmiotu opodatkowania lub jednostkę redakcyjną - zgodnie z uchwałą rady gminy."]
[null,null," 93. Rodzaj przedmiotu opodatkowania",null,null,null,null,null,null,null,null,null," 94.",null,null,null,null," 95.",null,null,null," 96."]
[null,null,null,null,null,null,null,null,null,null,null,null,null,null,null,null,null,null,null,null,null,{"$f":"IF(OR($M$32=\"\",M177=\"\",R177=\"\"),\"\",ROUND(M177*R177/100/12*(13-$M$32),2))","v":""}]
[null," D.3.2. INNE BUDOWLE LUB ICH CZĘŚCI (2) Należy wypełnić tylko dla rodzajów przedmiotów opodatkowania innych niż"]
[null,null," określone w części D.3. Podać nazwę rodzaju przedmiotu opodatkowania lub jednostkę redakcyjną - zgodnie z uchwałą rady gminy."]
[null,null," 93. Rodzaj przedmiotu opodatkowania",null,null,null,null,null,null,null,null,null," 94.",null,null,null,null," 95.",null,null,null," 96."]
[null,null,null,null,null,null,null,null,null,null,null,null,null,null,null,null,null,null,null,null,null,{"$f":"IF(OR($M$32=\"\",M181=\"\",R181=\"\"),\"\",ROUND(M181*R181/100/12*(13-$M$32),2))","v":""}]
[]
[null," E. WYSOKOŚĆ ZOBOWIĄZANIA PODATKOWEGO I RAT PODATKU"]
[null,null," Łączna kwota podatku za okres, którego dotyczy deklaracja",null,null,null,null,null,null,null,null,null,null,null,null,null,null,null," 97."]
[null,null," Suma kwot podatku z części D.1, D.2 i D.3.",null,null,null,null,null,null,null,null,null,null,null,null,null,null,null,{"$f":"IF(AND(V74=\"\",V76=\"\",V78=\"\",V80=\"\",V84=\"\",V86=\"\",V90=\"\",V92=\"\",V101=\"\",V112=\"\",V118=\"\",V124=\"\",V130=\"\",V138=\"\",V144=\"\",V152=\"\",V163=\"\",V173=\"\",V177=\"\",V181=\"\"),\"\",SUM(V74,V76,V78,V80,V84,V86,V90,V92,V101,V112,V118,V124,V130,V138,V144,V152,V163,V173,V177,V181))","v":""}]
[null,null," Kwota podatku za miesiące nieobjęte deklaracją 6)",null,null,null,null,null,null,null,null,null,null,null,null,null,null,null," 98."]
[null,null," Jeżeli w poz. 5 zaznaczono kwadrat 1, należy wpisać 0."]
[null,null," Wysokość zobowiązania podatkowego7)",null,null,null,null,null,null,null,null,null,null,null,null,null,null,null," 99."]
[null,null," Suma kwot z poz. 97 i 98 (po zaokrągleniu do pełnych złotych).",null,null,null,null,null,null,null,null,null,null,null,null,null,null,null,{"$f":"IF(AND(S185=\"\",S187=\"\"),\"\",ROUND(SUM(S185,S187),0))","v":""}]
[null,"Suma kwot z poz. od 100 do 111 musi być równa kwocie z poz. 997). W przypadku korekty deklaracji raty, które nie zostały objęte korektą, pozostają bez zmian."]
[null,null," Kwota I raty",null,null,null,null,null,null," 100.",null,null,null,null,null,null," Kwota II raty",null,null,null," 101."]
[]
[null,null," Kwota III raty",null,null,null,null,null,null," 102.",null,null,null,null,null,null," Kwota IV raty",null,null,null," 103."]
[]
[null,null," Kwota V raty",null,null,null,null,null,null," 104.",null,null,null,null,null,null," Kwota VI raty",null,null,null," 105."]
[]
[null,null," Kwota VII raty",null,null,null,null,null,null," 106.",null,null,null,null,null,null," Kwota VIII raty",null,null,null," 107."]
[]
[null,null," Kwota IX raty",null,null,null,null,null,null," 108.",null,null,null,null,null,null," Kwota X raty",null,null,null," 109."]
[]
[null,null," Kwota XI raty",null,null,null,null,null,null," 110.",null,null,null,null,null,null," Kwota XII raty",null,null,null," 111."]
[]
[]
[null," F. INFORMACJA O ZAŁĄCZNIKACH Deklarację należy składać wraz z odpowiednimi załącznikami, które stanowią jej"]
[null,null,"integralną część."]
[null,null," 112. Liczba załączników ZDN-1",null,null,null,null,null,null,null,null,null,null,null,null,null," 113. Liczba załączników ZDN-2"]
[]
[]
[null," G. KONTAKT DO OSOBY ODPOWIEDZIALNEJ ZA SPORZĄDZENIE DEKLARACJI"]
[null,"I DODATKOWE INFORMACJE"]
[null,null,"Podanie informacji w części G nie jest obowiązkowe."]
[null,null," 114. Telefon",null,null,null,null,null,null,null,null,null,null,null,null," 115. E-mail"]
[]
[]
[null,"DN-1(1)",null,null,"4/5"]
[" - STRONA 5 -"]
[null," WYPEŁNIĆ DUŻYMI, DRUKOWANYMI LITERAMI, CZARNYM LUB NIEBIESKIM KOLOREM."]
[]
[null,null," 116. Inne (np. określenie zdarzenia powodującego obowiązek złożenia deklaracji)"]
[]
[]
[null," H. PODPIS PODATNIKA I OSÓB REPREZENTUJĄCYCH PODATNIKA"]
[null," H.1. PODPIS PODATNIKA"]
[null,null," 117. Pierwsze imię",null,null,null,null,null,null,null,null,null,null,null,null," 118. Nazwisko"]
[]
[null,null," 119. Data wypełnienia (dzień - miesiąc - rok)",null,null,null,null,null,null,null,null,null,null,null,null," 120. Podpis podatnika"]
[]
[null," H.2. PODPISY OSÓB REPREZENTUJĄCYCH PODATNIKA"]
[null,null," 121. Pierwsze imię",null,null,null,null,null,null,null,null,null,null,null,null," 122. Nazwisko"]
[]
[null,null," 123. Data wypełnienia (dzień - miesiąc - rok)",null,null,null,null,null,null,null,null,null,null,null,null," 124. Podpis osoby reprezentującej podatnika"]
[]
[null,null," 125. Pierwsze imię",null,null,null,null,null,null,null,null,null,null,null,null," 126. Nazwisko"]
[]
[null,null," 127. Data wypełnienia (dzień - miesiąc - rok)",null,null,null,null,null,null,null,null,null,null,null,null," 128. Podpis osoby reprezentującej podatnika"]
[]
[]
[null," I. ADNOTACJE ORGANU PODATKOWEGO"]
[null,null," 129. Uwagi organu podatkowego"]
[]
[]
[]
[]
[]
[]
[null," Objaśnienia"]
[null,"1)","Numer PESEL wpisują podatnicy będący osobami fizycznymi objętymi rejestrem PESEL, nieprowadzący działalności gospodarczej lub"]
[null,null,"niebędący zarejestrowanymi podatnikami podatku od towarów i usług. Identyfikator podatkowy NIP wpisują pozostali podatnicy."]
[null,"2)","Z wyjątkiem poz. 5 kwadrat 1, ilekroć jest mowa o deklaracji, rozumie się przez to również korektę deklaracji."]
[null,"3)","Zgodnie z przepisami Ordynacji podatkowej."]
[null,"4)","Powierzchnię w ha należy wykazać wyłącznie dla gruntów pod wodami powierzchniowymi stojącymi lub wodami powierzchniowymi"]
[null,null,"płynącymi jezior i zbiorników sztucznych (z dokładnością do czterech miejsc po przecinku)."]
[null,"5)","Kwotę podatku należy obliczyć, mnożąc podstawę opodatkowania przez stawkę podatku, proporcjonalnie do liczby miesięcy, których"]
[null,null,"dotyczy deklaracja."]
[null,"6)","W przypadku korekty deklaracji należy wpisać sumę miesięcznych kwot podatku za miesiące nieobjęte składaną korektą deklaracji."]
[null,"7)","Kwotę podatku (rat podatku) zaokrągla się do pełnych złotych, w ten sposób, że końcówki kwot wynoszące mniej niż 50 groszy pomija"]
[null,null,"się, a końcówki kwot wynoszące 50 i więcej groszy podwyższa się do pełnych złotych."]
[null,null,"W ostatniej racie następuje wyrównanie do kwoty zobowiązania podatkowego (poz. 99)."]
[null,null,"Obliczony w deklaracji podatek należy wpłacać w ratach proporcjonalnych do czasu trwania obowiązku podatkowego w terminach:"]
[null,null,"I rata płatna do dnia 31 stycznia, a następne do dnia 15 każdego miesiąca."]
[null,null,"W przypadku gdy kwota podatku nie przekracza 100 zł, podatek jest płatny jednorazowo w terminie płatności pierwszej raty."]
[null,"Pouczenia"]
[null,"W przypadku niewpłacenia w obowiązujących terminach zobowiązania podatkowego lub raty podatku lub wpłacenia ich w niepełnej wysokości"]
[null,"niniejsza deklaracja stanowi podstawę do wystawienia tytułu wykonawczego, zgodnie z przepisami o postępowaniu egzekucyjnym w administracji."]
[]
[null,"Za podanie nieprawdy lub zatajenie prawdy i przez to narażenie podatku na uszczuplenie grozi odpowiedzialność przewidziana w Kodeksie"]
[null,"karnym skarbowym."]
[]
[null,null,null,null,null,null,null,null,null,null,null,null,null,null,null,null,null,null,null,null,"DN-1(1)",null,null,"5/5"]

{"sheet":"ZDN-1","index":1,"n_rows":64,"n_cols":21,"rows_kept":64,"cut":false,"hidden":false,"merged":[[65,1,65,18],[61,2,61,5],[61,6,61,7],[61,8,61,10],[61,11,61,12],[61,16,61,18],[64,1,64,18],[62,2,62,18],[63,2,63,18],[59,2,59,5],[59,6,59,7],[59,8,59,10],[59,11,59,12],[59,16,59,18],[60,2,60,5],[60,6,60,7],[60,8,60,10],[60,11,60,12],[60,16,60,18],[57,2,57,5],[57,6,57,7],[57,8,57,10],[57,11,57,12],[57,16,57,18],[58,2,58,5],[58,6,58,7],[58,8,58,10],[58,11,58,12],[58,16,58,18],[55,2,55,5],[55,6,55,7],[55,8,55,10],[55,11,55,12],[55,16,55,18],[56,2,56,5],[56,6,56,7],[56,8,56,10],[56,11,56,12],[56,16,56,18],[53,2,53,5],[53,6,53,7],[53,8,53,10],[53,11,53,12],[53,16,53,18],[54,2,54,5],[54,6,54,7],[54,8,54,10],[54,11,54,12],[54,16,54,18],[51,1,51,18],[52,2,52,5],[52,6,52,7],[52,8,52,10],[52,11,52,12],[52,16,52,18],[49,2,49,8],[49,9,49,10],[49,11,49,12],[49,16,49,18],[50,2,50,8],[50,9,50,10],[50,11,50,12],[50,16,50,18],[47,2,47,8],[47,9,47,10],[47,11,47,12],[47,16,47,18],[48,2,48,8],[48,9,48,10],[48,11,48,12],[48,16,48,18],[45,2,45,8],[45,9,45,10],[45,11,45,12],[45,16,45,18],[46,2,46,8],[46,9,46,10],[46,11,46,12],[46,16,46,18],[43,2,43,8],[43,9,43,10],[43,11,43,12],[43,16,43,18],[44,2,44,8],[44,9,44,10],[44,11,44,12],[44,16,44,18],[40,16,41,18],[41,9,41,10],[42,2,42,8],[42,9,42,10],[42,11,42,12],[42,16,42,18],[40,15,41,15],[40,14,41,14],[36,0,36,18],[37,1,37,18],[38,1,38,18],[39,1,39,18],[40,1,41,1],[40,2,41,8],[40,9,40,10],[40,11,41,12],[40,13,41,13],[32,2,32,18],[33,2,33,18],[34,2,34,18],[35,1,35,16],[29,2,29,8],[29,9,29,10],[29,11,29,12],[29,16,29,18],[30,2,30,18],[31,2,31,18],[27,2,27,8],[27,9,27,10],[27,11,27,12],[27,16,27,18],[28,2,28,8],[28,9,28,10],[28,11,28,12],[28,16,28,18],[25,2,25,8],[25,9,25,10],[25,11,25,12],[25,16,25,18],[26,2,26,8],[26,9,26,10],[26,11,26,12],[26,16,26,18],[23,2,23,8],[23,9,23,10],[23,11,23,12],[23,16,23,18],[24,2,24,8],[24,9,24,10],[24,11,24,12],[24,16,24,18],[21,2,21,8],[21,9,21,10],[21,11,21,12],[21,16,21,18],[22,2,22,8],[22,9,22,10],[22,11,22,12],[22,16,22,18],[16,1,16,18],[17,1,17,18],[18,1,18,18],[19,1,20,1],[19,2,20,8],[19,9,19,10],[19,11,20,12],[19,13,20,13],[19,16,20,18],[20,9,20,10],[19,15,20,15],[12,1,12,18],[14,2,14,9],[14,10,14,18],[15,2,15,9],[15,10,15,18],[5,1,5,18],[6,1,6,18],[7,1,7,18],[8,1,9,16],[8,17,8,18],[9,17,9,18],[13,1,13,18],[0,1,0,18],[1,1,1,18],[2,1,2,18],[3,12,4,18],[4,1,4,4],[4,5,4,11],[3,1,3,11],[10,1,10,18],[11,1,11,18]]}
[]
[null," WYPEŁNIĆ DUŻYMI, DRUKOWANYMI LITERAMI, CZARNYM LUB NIEBIESKIM KOLOREM."]
[]
[null," 1. Identyfikator podatkowy NIP / numer PESEL (niepotrzebne skreślić)1)",null,null,null,null,null,null,null,null,null,null," 2. Nr dokumentu"]
[null,null,null,null,null,{"$f":"IF('DN-1'!D5=\"\",\"\",'DN-1'!D5)","v":""}]
[null,"    ZDN-1"]
[null,"ZAŁĄCZNIK DO DEKLARACJI NA PODATEK OD NIERUCHOMOŚCI"]
[null,"- DANE O PRZEDMIOTACH OPODATKOWANIA PODLEGAJĄCYCH OPODATKOWANIU"]
[null,null,null,null,null,null,null,null,null,null,null,null,null,null,null,null,null," 3. Nr załącznika"]
[]
[]
[]
[null," A. DANE PODATNIKA WSKAZANEGO W CZĘŚCI C.1 DEKLARACJI DN-1"]
[null,"* - dotyczy podatnika niebędącego osobą fizyczną               **- dotyczy podatnika będącego osobą fizyczną"]
[null,null," 4. Nazwa pełna * / Nazwisko **",null,null,null,null,null,null,null," 5. Nazwa skrócona * / Pierwsze imię **"]
[null,null,{"$f":"IF('DN-1'!C44=\"\",\"\",'DN-1'!C44)","v":""},null,null,null,null,null,null,null,{"$f":"IF('DN-1'!P44=\"\",\"\",'DN-1'!P44)","v":""}]
[]
[null," B. DANE O POSZCZEGÓLNYCH PRZEDMIOTACH OPODATKOWANIA PODLEGAJĄCYCH OPODATKOWANIU"]
[null," B.1. GRUNTY"]
[null," Lp.\n"," Położenie (adres, w tym dzielnica)\n",null,null,null,null,null,null,"Nr księgi wieczystej",null,"Nr obrębu\n(arkusza\nmapy)2)",null," Nr działki\n","Powierzchnia w m2 /","Stawka\nPodatku4)","Forma władania5)\n"]
[null,null,null,null,null,null,null,null,null,"(zbioru dokumentów)",null,null,null,null,"ha3)"]
[null,null,"a",null,null,null,null,null,null,"b",null,"c",null,"d","e","f","g"]
[null,1]
[null,2]
[null,3]
[null,4]
[null,5]
[null,6]
[null,7]
[null,8]
[null,"1)","Numer PESEL wpisują podatnicy będący osobami fizycznymi objętymi rejestrem PESEL, nieprowadzący działalności gospodarczej lub niebędący zarejestrowanymi podatnikami podatku od towarów i usług.",null,null,null,null,null,null,null,null,null,null,null,null,null,null,null,null,null,"własność"]
[null,null,"Identyfikator podatkowy NIP wpisują pozostali podatnicy.",null,null,null,null,null,null,null,null,null,null,null,null,null,null,null,null,null,"użytkowanie wieczyste"]
[null,"2)","Numer obrębu należy podać wraz z numerem arkusza mapy ewidencyjnej w przypadku, gdy działki numerowane są w ramach arkusza mapy.",null,null,null,null,null,null,null,null,null,null,null,null,null,null,null,null,null,"posiadanie samoistne"]
[null,"3)","Powierzchnię w ha należy wykazać wyłącznie w przypadku gruntów pod wodami powierzchniowymi stojącymi lub wodami powierzchniowymi płynącymi jezior i zbiorników sztucznych (z dokładnością",null,null,null,null,null,null,null,null,null,null,null,null,null,null,null,null,null,"posiadanie zależne"]
[null,null,"do czterech miejsc po przecinku).",null,null,null,null,null,null,null,null,null,null,null,null,null,null,null,null,null,"posiadanie bez tytułu prawnego"]
[]
[" - STRONA 2 -"]
[null," WYPEŁNIĆ DUŻYMI, DRUKOWANYMI LITERAMI, CZARNYM LUB NIEBIESKIM KOLOREM."]
[]
[null," B.2. BUDYNKI LUB ICH CZĘŚCI"]
[null," Lp.\n"," Położenie (adres, w tym dzielnica)\n",null,null,null,null,null,null,"Nr księgi wieczystej",null,"Nr obrębu\n(arkusza\nmapy)2)",null," Nr działki\n","Powierzchnia użytkowa w m2","Stawka\nPodatku4)","Forma władania5)\n"]
[null,null,null,null,null,null,null,null,null,"(zbioru dokumentów)"]
[null,null,"a",null,null,null,null,null,null,"b",null,"c",null,"d","e","f","g"]
[null,1]
[null,2]
[null,3]
[null,4]
[null,5]
[null,6]
[null,7]
[null,8]
[null," B.3. BUDOWLE LUB ICH CZĘŚCI ZWIĄZANE Z PROWADZENIEM DZIAŁALNOŚCI GOSPODARCZEJ"]
[null," Lp.\n"," Nazwa budowli\n",null,null,null," Nr inwentarzowy\n",null," Położenie (adres, w tym dzielnica)\n",null,null,"Nr obrębu\n(arkusza\nmapy)2)",null," Nr działki\n"," Wartość w zł\n","Stawka\nPodatku4)","Forma władania5)\n"]
[null,null,"a",null,null,null,"b",null,"c",null,null,"d",null,"e","f","g","h"]
[null,1]
[null,2]
[null,3]
[null,4]
[null,5]
[null,6]
[null,7]
[null,8]
[null,"4)","Należy podać stawkę właściwą dla rodzaju przedmiotu opodatkowania zgodną z uchwałą rady gminy."]
[null,"5)","Należy podać jedną z form władania: własność, użytkowanie wieczyste, posiadanie samoistne, posiadanie zależne lub posiadanie bez tytułu prawnego."]

{"sheet":"ZDN-2","index":2,"n_rows":64,"n_cols":21,"rows_kept":64,"cut":false,"hidden":false,"merged":[[63,2,63,18],[64,1,64,18],[65,1,65,18],[61,2,61,5],[61,6,61,7],[61,8,61,10],[61,11,61,12],[61,16,61,18],[62,2,62,18],[59,2,59,5],[59,6,59,7],[59,8,59,10],[59,11,59,12],[59,16,59,18],[60,2,60,5],[60,6,60,7],[60,8,60,10],[60,11,60,12],[60,16,60,18],[57,2,57,5],[57,6,57,7],[57,8,57,10],[57,11,57,12],[57,16,57,18],[58,2,58,5],[58,6,58,7],[58,8,58,10],[58,11,58,12],[58,16,58,18],[55,2,55,5],[55,6,55,7],[55,8,55,10],[55,11,55,12],[55,16,55,18],[56,2,56,5],[56,6,56,7],[56,8,56,10],[56,11,56,12],[56,16,56,18],[53,2,53,5],[53,6,53,7],[53,8,53,10],[53,11,53,12],[53,16,53,18],[54,2,54,5],[54,6,54,7],[54,8,54,10],[54,11,54,12],[54,16,54,18],[51,1,51,18],[52,2,52,5],[52,6,52,7],[52,8,52,10],[52,11,52,12],[52,16,52,18],[49,2,49,8],[49,9,49,10],[49,11,49,12],[49,16,49,18],[50,2,50,8],[50,9,50,10],[50,11,50,12],[50,16,50,18],[47,2,47,8],[47,9,47,10],[47,11,47,12],[47,16,47,18],[48,2,48,8],[48,9,48,10],[48,11,48,12],[48,16,48,18],[45,2,45,8],[45,9,45,10],[45,11,45,12],[45,16,45,18],[46,2,46,8],[46,9,46,10],[46,11,46,12],[46,16,46,18],[43,2,43,8],[43,9,43,10],[43,11,43,12],[43,16,43,18],[44,2,44,8],[44,9,44,10],[44,11,44,12],[44,16,44,18],[40,15,41,15],[40,16,41,18],[41,9,41,10],[42,2,42,8],[42,9,42,10],[42,11,42,12],[42,16,42,18],[36,0,36,18],[37,1,37,18],[38,1,38,18],[39,1,39,18],[40,1,41,1],[40,2,41,8],[40,9,40,10],[40,11,41,12],[40,13,41,13],[30,2,30,18],[31,2,31,18],[32,2,32,18],[33,2,33,18],[34,2,34,18],[35,1,35,16],[28,2,28,8],[28,9,28,10],[28,11,28,12],[28,16,28,18],[29,2,29,8],[29,9,29,10],[29,11,29,12],[29,16,29,18],[26,2,26,8],[26,9,26,10],[26,11,26,12],[26,16,26,18],[27,2,27,8],[27,9,27,10],[27,11,27,12],[27,16,27,18],[24,2,24,8],[24,9,24,10],[24,11,24,12],[24,16,24,18],[25,2,25,8],[25,9,25,10],[25,11,25,12],[25,16,25,18],[22,2,22,8],[22,9,22,10],[22,11,22,12],[22,16,22,18],[23,2,23,8],[23,9,23,10],[23,11,23,12],[23,16,23,18],[19,15,20,15],[19,16,20,18],[20,9,20,10],[21,2,21,8],[21,9,21,10],[21,11,21,12],[21,16,21,18],[15,2,15,9],[15,10,15,18],[16,1,16,18],[17,1,17,18],[18,1,18,18],[19,1,20,1],[19,2,20,8],[19,9,19,10],[19,11,20,12],[19,13,20,13],[12,1,12,18],[13,1,13,18],[14,2,14,9],[14,10,14,18],[5,1,5,18],[6,1,6,18],[7,1,7,18],[8,1,9,16],[8,17,8,18],[9,17,9,18],[0,1,0,18],[1,1,1,18],[2,1,2,18],[3,1,3,11],[3,12,4,18],[4,1,4,4],[4,5,4,11],[10,1,10,18],[11,1,11,18]]}
[]
[null," WYPEŁNIĆ DUŻYMI, DRUKOWANYMI LITERAMI, CZARNYM LUB NIEBIESKIM KOLOREM."]
[]
[null," 1. Identyfikator podatkowy NIP / numer PESEL (niepotrzebne skreślić)1)",null,null,null,null,null,null,null,null,null,null," 2. Nr dokumentu"]
[null,null,null,null,null,{"$f":"IF('DN-1'!D5=\"\",\"\",'DN-1'!D5)","v":""}]
[null,"    ZDN-2"]
[null,"ZAŁĄCZNIK DO DEKLARACJI NA PODATEK OD NIERUCHOMOŚCI"]
[null,"- DANE O PRZEDMIOTACH OPODATKOWANIA ZWOLNIONYCH Z OPODATKOWANIA"]
[null,null,null,null,null,null,null,null,null,null,null,null,null,null,null,null,null," 3. Nr załącznika"]
[]
[]
[]
[null," A. DANE PODATNIKA WSKAZANEGO W CZĘŚCI C.1 DEKLARACJI DN-1"]
[null,"* - dotyczy podatnika niebędącego osobą fizyczną               **- dotyczy podatnika będącego osobą fizyczną"]
[null,null," 4. Nazwa pełna * / Nazwisko **",null,null,null,null,null,null,null," 5. Nazwa skrócona * / Pierwsze imię **"]
[null,null,{"$f":"IF('DN-1'!C44=\"\",\"\",'DN-1'!C44)","v":""},null,null,null,null,null,null,null,{"$f":"IF('DN-1'!P44=\"\",\"\",'DN-1'!P44)","v":""}]
[]
[null," B. DANE O POSZCZEGÓLNYCH PRZEDMIOTACH OPODATKOWANIA ZWOLNIONYCH Z OPODATKOWANIA"]
[null," B.1. GRUNTY"]
[null," Lp.\n"," Położenie (adres, w tym dzielnica)\n",null,null,null,null,null,null,"Nr księgi wieczystej",null,"Nr obrębu\n(arkusza\nmapy)2)",null," Nr działki\n","Powierzchnia","Podstawa prawna\nzwolnienia4","Stawka podatku5)\n"]
[null,null,null,null,null,null,null,null,null,"(zbioru dokumentów)",null,null,null,null," w m2 / ha3)"]
[null,null,"a",null,null,null,null,null,null,"b",null,"c",null,"d","e","f","g"]
[null,1]
[null,2]
[null,3]
[null,4]
[null,5]
[null,6]
[null,7]
[null,8]
[null,"1)","Numer PESEL wpisują podatnicy będący osobami fizycznymi objętymi rejestrem PESEL, nieprowadzący działalności gospodarczej lub niebędący zarejestrowanymi podatnikami podatku od towarów i usług.",null,null,null,null,null,null,null,null,null,null,null,null,null,null,null,null,null,"własność"]
[null,null,"Identyfikator podatkowy NIP wpisują pozostali podatnicy.",null,null,null,null,null,null,null,null,null,null,null,null,null,null,null,null,null,"użytkowanie wieczyste"]
[null,"2)","Numer obrębu należy podać wraz z numerem arkusza mapy ewidencyjnej w przypadku, gdy działki numerowane są w ramach arkusza mapy.",null,null,null,null,null,null,null,null,null,null,null,null,null,null,null,null,null,"posiadanie samoistne"]
[null,"3)","Powierzchnię w ha należy wykazać wyłącznie w przypadku gruntów pod wodami powierzchniowymi stojącymi lub wodami powierzchniowymi płynącymi jezior i zbiorników sztucznych (z dokładnością",null,null,null,null,null,null,null,null,null,null,null,null,null,null,null,null,null,"posiadanie zależne"]
[null,null,"do czterech miejsc po przecinku).",null,null,null,null,null,null,null,null,null,null,null,null,null,null,null,null,null,"posiadanie bez tytułu prawnego"]
[]
[" - STRONA 2 -"]
[null," WYPEŁNIĆ DUŻYMI, DRUKOWANYMI LITERAMI, CZARNYM LUB NIEBIESKIM KOLOREM."]
[]
[null," B.2. BUDYNKI LUB ICH CZĘŚCI"]
[null," Lp.\n"," Położenie (adres, w tym dzielnica)\n",null,null,null,null,null,null,"Nr księgi wieczystej",null,"Nr obrębu\n(arkusza\nmapy)2)",null," Nr działki\n","Powierzchnia","Podstawa prawna\nzwolnienia4","Stawka podatku5)\n"]
[null,null,null,null,null,null,null,null,null,"(zbioru dokumentów)",null,null,null,null,"użytkowa w m2"]
[null,null,"a",null,null,null,null,null,null,"b",null,"c",null,"d","e","f","g"]
[null,1]
[null,2]
[null,3]
[null,4]
[null,5]
[null,6]
[null,7]
[null,8]
[null," B.3. BUDOWLE LUB ICH CZĘŚCI ZWIĄZANE Z PROWADZENIEM DZIAŁALNOŚCI GOSPODARCZEJ"]
[null," Lp.\n"," Nazwa budowli\n",null,null,null," Nr inwentarzowy\n",null," Położenie (adres, w tym dzielnica)\n",null,null,"Nr obrębu\n(arkusza\nmapy)2)",null," Nr działki\n"," Wartość w zł\n","Podstawa prawna\nzwolnienia4","Stawka podatku5)\n"]
[null,null,"a",null,null,null,"b",null,"c",null,null,"d",null,"e","f","g","h"]
[null,1]
[null,2]
[null,3]
[null,4]
[null,5]
[null,6]
[null,7]
[null,8]
[null,"4)","Należy podać jednostkę redakcyjną z ustawy lub uchwały rady gminy."]
[null,"5)","Należy podać stawkę właściwą dla rodzaju przedmiotu opodatkowania zgodną z uchwałą rady gminy."]